fUSD/lending_fUSD_20241104
["ID","MTS","AMOUNT","RATE_DAILY","PERIOD"]
[341230251,1730706640088,-535.25089747,0.00035616,2]
[341230252,1730706640097,-504.48705806,0.00035616,2]
[341230253,1730706640107,-502.74822537,0.00035616,2]
[341230254,1730706640117,-509.73962037,0.00035616,2]
[341230255,1730706640128,-507.88524181,0.00035616,2]
[341230256,1730706640137,-500.0,0.00035616,2]
[341230257,1730706640146,-513.00683975,0.00035616,2]
[341230258,1730706640155,-507.86239075,0.00035616,2]
[341230259,1730706640165,-503.62305104,0.00035616,2]
[341230260,1730706640174,-500.0,0.00035616,2]
[341230261,1730706640183,-505.27976444,0.00035616,2]
[341230262,1730706640192,-530.68382847,0.00035616,2]
[341230263,1730706640202,-500.0,0.00035616,2]
[341230264,1730706640211,-500.0,0.00035616,2]
[341230265,1730706640220,-373.76340745,0.00035616,2]
[341230266,1730706640229,-500.0,0.00035616,2]
[341230267,1730706640241,-219.71443682,0.00035616,2]
[341230268,1730706640251,-500.0,0.00035616,2]
[341230269,1730706640260,-263.2830669,0.00035616,2]
[341230270,1730706640270,-500.0,0.00035616,2]
[341230271,1730706640279,-500.0,0.00035616,2]
[341230272,1730706640288,-500.0,0.00035616,2]
[341230273,1730706640297,-500.0,0.00035616,2]
[341230274,1730706640306,-543.04309113,0.00035616,2]
[341230275,1730706640315,-500.0,0.00035616,2]
[341230276,1730706640324,-503.38867488,0.00035616,2]
[341230277,1730706640333,-167.98589199,0.00035616,2]
[341230278,1730706640342,-502.53080087,0.00035616,2]
[341230279,1730706640351,-500.0,0.00035616,2]
[341230280,1730706640360,-500.0,0.00035616,2]
[341230281,1730706640371,-502.42199952,0.00035616,2]
[341230282,1730706640380,-503.52787964,0.00035616,2]
[341230283,1730706640389,-500.0,0.00035616,2]
[341230284,1730706640399,-503.22166948,0.00035616,2]
[341230285,1730706640411,-500.0,0.00035616,2]
[341230286,1730706640421,-500.0,0.00035616,2]
[341230287,1730706640430,-501.16768254,0.00035616,2]
[341230288,1730706640440,-500.0,0.00035616,2]
[341230289,1730706640452,-500.0,0.00035616,2]
[341230290,1730706640462,-502.99752724,0.00035616,2]
[341230291,1730706640472,-500.0,0.00035616,2]
[341230292,1730706640486,-500.0,0.00035616,2]
[341230293,1730706640495,-500.0,0.00035616,2]
[341230294,1730706640504,-501.90045047,0.00035616,2]
[341230295,1730706640514,-500.0,0.00035616,2]
[341230296,1730706640523,-500.0,0.00035616,2]
[341230297,1730706640532,-503.61183924,0.00035616,2]
[341230298,1730706640541,-503.55231322,0.00035616,2]
[341230299,1730706640550,-500.0,0.00035616,2]
[341230300,1730706640559,-501.22977385,0.00035616,2]
[341230301,1730706640568,-500.0,0.00035616,2]
[341230302,1730706640578,-503.56419985,0.00035616,2]
[341230303,1730706640589,-509.52891244,0.00035616,2]
[341230304,1730706640598,-164.42462399,0.00035616,2]
[341230305,1730706640608,-500.0,0.00035616,2]
[341230306,1730706640618,-500.0,0.00035616,2]
[341230307,1730706640627,-503.17406788,0.00035616,2]
[341230308,1730706640636,-500.0,0.00035616,2]
[341230309,1730706640645,-500.0,0.00035616,2]
[341230310,1730706640655,-502.22096672,0.00035616,2]
[341230311,1730706640664,-570.41244537,0.00035616,2]
[341230312,1730706640673,-500.0,0.00035616,2]
[341230313,1730706640682,-500.0,0.00035616,2]
[341230314,1730706640691,-500.0,0.00035616,2]
[341230315,1730706640700,-500.0,0.00035616,2]
[341230316,1730706640709,-503.52785302,0.00035616,2]
[341230317,1730706640718,-500.0,0.00035616,2]
[341230318,1730706640727,-500.0,0.00035616,2]
[341230319,1730706640737,-500.0,0.00035616,2]
[341230320,1730706640746,-500.0,0.00035616,2]
[341230321,1730706640755,-500.0,0.00035616,2]
[341230322,1730706640764,-500.0,0.00035616,2]
[341230323,1730706640773,-502.32694284,0.00035616,2]
[341230324,1730706640781,-500.0,0.00035616,2]
[341230325,1730706640791,-506.35676069,0.00035616,2]
[341230326,1730706640800,-500.0,0.00035616,2]
[341230327,1730706640809,-508.69561131,0.00035616,2]
[341230328,1730706640818,-500.0,0.00035616,2]
[341230329,1730706640827,-500.0,0.00035616,2]
[341230330,1730706640836,-500.0,0.00035616,2]
[341230331,1730706640845,-500.0,0.00035616,2]
[341230332,1730706640854,-501.2547338,0.00035616,2]
[341230333,1730706640863,-330.81178831,0.00035616,2]
[341230334,1730706640872,-500.0,0.00035616,2]
[341230335,1730706640881,-500.0,0.00035616,2]
[341230336,1730706640890,-501.97287568,0.00035616,2]
[341230337,1730706640899,-245.02659996,0.00035616,2]
[341230338,1730706640909,-500.0,0.00035616,2]
[341230339,1730706640918,-500.0,0.00035616,2]
[341230340,1730706640927,-500.0,0.00035616,2]
[341230341,1730706640936,-501.37380638,0.00035616,2]
[341230342,1730706640945,-502.39799248,0.00035616,2]
[341230343,1730706640954,-546.80454171,0.00035616,2]
[341230344,1730706640963,-500.0,0.00035616,2]
[341230345,1730706640972,-178.83446944,0.00035616,2]
[341230346,1730706640982,-500.0,0.00035616,2]
[341230347,1730706640991,-500.0,0.00035616,2]
[341230348,1730706641000,-500.94625958,0.00035616,2]
[341230349,1730706641010,-500.0,0.00035616,2]
[341230350,1730706641020,-500.0,0.00035616,2]
[341230351,1730706641029,-500.0,0.00035616,2]
[341230352,1730706641039,-500.0,0.00035616,2]
[341230353,1730706641048,-501.48971104,0.00035616,2]
[341230354,1730706641057,-500.0,0.00035616,2]
[341230355,1730706641066,-502.28568693,0.00035616,2]
[341230356,1730706641076,-284.94507928,0.00035616,2]
[341230357,1730706641087,-500.0,0.00035616,2]
[341230358,1730706641098,-502.95983609,0.00035616,2]
[341230359,1730706641107,-500.0,0.00035616,2]
[341230360,1730706641117,-500.0,0.00035616,2]
[341230361,1730706641126,-500.0,0.00035616,2]
[341230362,1730706641135,-509.271938,0.00035616,2]
[341230363,1730706641144,-501.16301983,0.00035616,2]
[341230364,1730706641154,-500.0,0.00035616,2]
[341230365,1730706641163,-503.13634168,0.00035616,2]
[341230366,1730706641171,-375.04132152,0.00035616,2]
[341230367,1730706641180,-500.0,0.00035616,2]
[341230368,1730706641189,-502.52793729,0.00035616,2]
[341230369,1730706641198,-500.0,0.00035616,2]
[341230370,1730706641208,-520.56196657,0.00035616,2]
[341230371,1730706641217,-501.38062569,0.00035616,2]
[341230372,1730706641226,-500.0,0.00035616,2]
[341230373,1730706641236,-501.16005071,0.00035616,2]
[341230374,1730706641245,-518.01623237,0.00035616,2]
[341230375,1730706641254,-513.57224345,0.00035616,2]
[341230376,1730706641263,-501.48608294,0.00035616,2]
[341230377,1730706641272,-500.0,0.00035616,2]
[341230378,1730706641282,-501.54495417,0.00035616,2]
[341230379,1730706641291,-500.0,0.00035616,2]
[341230380,1730706641299,-500.0,0.00035616,2]
[341230381,1730706641417,-500.0,0.00035616,2]
[341230382,1730706641426,-569.23473062,0.00035616,2]
[341230383,1730706641436,-571.40692532,0.00035616,2]
[341230384,1730706641445,-501.71785585,0.00035616,2]
[341230385,1730706641454,-500.0,0.00035616,2]
[341230386,1730706641463,-500.0,0.00035616,2]
[341230387,1730706641473,-518.7766361,0.00035616,2]
[341230388,1730706641483,-500.0,0.00035616,2]
[341230389,1730706641492,-500.0,0.00035616,2]
[341230390,1730706641501,-500.0,0.00035616,2]
[341230391,1730706641510,-150.0,0.00035616,2]
[341230392,1730706641520,-501.83056492,0.00035616,2]
[341230393,1730706641529,-2000.0,0.00035616,2]
[341230394,1730706641538,-501.27626666,0.00035616,2]
[341230395,1730706641547,-500.0,0.00035616,2]
[341230396,1730706641557,-503.35170188,0.00035616,2]
[341230397,1730706641567,-500.0,0.00035616,2]
[341230398,1730706641576,-226.30723742,0.00035616,2]
[341230399,1730706641586,-502.05781638,0.00035616,2]
[341230400,1730706641595,-500.0,0.00035616,2]
[341230401,1730706641604,-500.0,0.00035616,2]
[341230402,1730706641613,-503.66203452,0.00035616,2]
[341230403,1730706641623,-500.0,0.00035616,2]
[341230404,1730706641632,-625.978823,0.00035616,2]
[341230405,1730706641642,-160.80440998,0.00035616,2]
[341230406,1730706641651,-512.7111786,0.00035616,2]
[341230407,1730706641660,-514.15054439,0.00035616,2]
[341230408,1730706641669,-500.0,0.00035616,2]
[341230409,1730706641679,-500.0,0.00035616,2]
[341230410,1730706641688,-502.95959292,0.00035616,2]
[341230411,1730706641697,-500.0,0.00035616,2]
[341230412,1730706641707,-425.01371559,0.00035616,2]
[341230413,1730706641716,-500.0,0.00035616,2]
[341230414,1730706641726,-502.26,0.00035616,2]
[341230415,1730706641736,-500.0,0.00035616,2]
[341230416,1730706641745,-515.34623513,0.00035616,2]
[341230417,1730706641755,-500.0,0.00035616,2]
[341230418,1730706641764,-500.0,0.00035616,2]
[341230419,1730706641773,-500.0,0.00035616,2]
[341230420,1730706641782,-500.0,0.00035616,2]
[341230421,1730706641792,-525.72050929,0.00035616,2]
[341230422,1730706641801,-373.95081637,0.00035616,2]
[341230423,1730706641811,-500.0,0.00035616,2]
[341230424,1730706641820,-500.0,0.00035616,2]
[341230425,1730706641830,-515.90940683,0.00035616,2]
[341230426,1730706641840,-518.10058804,0.00035616,2]
[341230427,1730706641849,-500.0,0.00035616,2]
[341230428,1730706641859,-500.0,0.00035616,2]
[341230429,1730706641868,-500.0,0.00035616,2]
[341230430,1730706641878,-500.0,0.00035616,2]
[341230431,1730706641887,-500.0,0.00035616,2]
[341230432,1730706641896,-500.0,0.00035616,2]
[341230433,1730706641906,-500.0,0.00035616,2]
[341230434,1730706641915,-503.22016796,0.00035616,2]
[341230435,1730706641924,-500.0,0.00035616,2]
[341230436,1730706641933,-500.0,0.00035616,2]
[341230437,1730706641943,-503.42604021,0.00035616,2]
[341230438,1730706641952,-500.0,0.00035616,2]
[341230439,1730706641962,-500.0,0.00035616,2]
[341230440,1730706641971,-527.18850003,0.00035616,2]
[341230441,1730706641982,-500.0,0.00035616,2]
[341230442,1730706641991,-922.57,0.00035616,2]
[341230443,1730706642001,-530.59200874,0.00035616,2]
[341230444,1730706642011,-500.0,0.00035616,2]
[341230445,1730706642020,-500.0,0.00035616,2]
[341230446,1730706642028,-500.0,0.00035616,2]
[341230447,1730706642038,-516.48488808,0.00035616,2]
[341230448,1730706642048,-500.0,0.00035616,2]
[341230449,1730706642057,-500.0,0.00035616,2]
[341230450,1730706642067,-583.31507035,0.00035616,2]
[341230451,1730706642077,-500.0,0.00035616,2]
[341230452,1730706642086,-500.0,0.00035616,2]
[341230453,1730706642095,-538.75516346,0.00035616,2]
[341230454,1730706642105,-500.0,0.00035616,2]
[341230455,1730706642114,-500.0,0.00035616,2]
[341230456,1730706642124,-500.0,0.00035616,2]
[341230457,1730706642134,-500.0,0.00035616,2]
[341230458,1730706642143,-500.0,0.00035616,2]
[341230459,1730706642152,-500.0,0.00035616,2]
[341230460,1730706642161,-500.0,0.00035616,2]
[341230461,1730706642171,-530.09058327,0.00035616,2]
[341230462,1730706642180,-500.00019221,0.00035616,2]
[341230463,1730706642190,-500.0,0.00035616,2]
[341230464,1730706642199,-500.0,0.00035616,2]
[341230465,1730706642208,-522.37587484,0.00035616,2]
[341230466,1730706642218,-500.0,0.00035616,2]
[341230467,1730706642227,-523.34080014,0.00035616,2]
[341230468,1730706642238,-500.0,0.00035616,2]
[341230469,1730706642248,-500.0,0.00035616,2]
[341230470,1730706642257,-157.33723,0.00035616,7]
[341230471,1730706642266,-500.0,0.00035616,2]
[341230472,1730706642276,-500.0,0.00035616,2]
[341230473,1730706642285,-500.0,0.00035616,2]
[341230474,1730706642295,-522.5167722,0.00035616,2]
[341230475,1730706642307,-505.85129475,0.00035616,2]
[341230476,1730706642318,-500.0,0.00035616,2]
[341230477,1730706642328,-500.0,0.00035616,2]
[341230478,1730706642338,-500.0,0.00035616,2]
[341230479,1730706642347,-500.0,0.00035616,2]
[341230480,1730706642357,-500.0,0.00035616,2]
[341230481,1730706642365,-500.0,0.00035616,2]
[341230482,1730706642379,-500.0,0.00035616,2]
[341230483,1730706642389,-500.0,0.00035616,2]
[341230484,1730706642398,-500.0,0.00035616,2]
[341230485,1730706642407,-507.72465333,0.00035616,2]
[341230486,1730706642418,-500.0,0.00035616,2]
[341230487,1730706642428,-500.0,0.00035616,2]
[341230488,1730706642437,-500.0,0.00035616,2]
[341230489,1730706642446,-155.71922756,0.00035616,2]
[341230490,1730706642456,-500.0,0.00035616,2]
[341230491,1730706642466,-539.39022056,0.00035616,2]
[341230492,1730706642475,-500.0,0.00035616,2]
[341230493,1730706642485,-500.0,0.00035616,2]
[341230494,1730706642494,-500.0,0.00035616,2]
[341230495,1730706642504,-500.0,0.00035616,2]
[341230496,1730706642513,-500.0,0.00035616,2]
[341230497,1730706642522,-500.0,0.00035616,2]
[341230498,1730706642532,-500.0,0.00035616,2]
[341230499,1730706642542,-528.96946466,0.00035616,2]
[341230500,1730706642551,-500.0,0.00035616,2]
[341230501,1730706642560,-255.520643,0.00035616,7]
[341230502,1730706642571,-500.0,0.00035616,2]
[341230503,1730706642580,-500.0,0.00035616,2]
[341230504,1730706642589,-151.0,0.00035616,7]
[341230505,1730706642599,-500.0,0.00035616,2]
[341230506,1730706642608,-500.0,0.00035616,2]
[341230507,1730706642618,-500.0,0.00035616,2]
[341230508,1730706642627,-500.0,0.00035616,2]
[341230509,1730706642636,-500.95997487,0.00035616,2]
[341230510,1730706642644,-151.0,0.00035616,7]
[341230511,1730706642654,-500.0,0.00035616,2]
[341230512,1730706642663,-500.0,0.00035616,2]
[341230513,1730706642672,-500.0,0.00035616,2]
[341230514,1730706642681,-500.0,0.00035616,2]
[341230515,1730706642691,-501.08706227,0.00035616,2]
[341230516,1730706642700,-500.0,0.00035616,2]
[341230517,1730706642709,-500.0,0.00035616,2]
[341230518,1730706642719,-501.11212253,0.00035616,2]
[341230519,1730706642729,-500.0,0.00035616,2]
[341230520,1730706642739,-500.0,0.00035616,2]
[341230521,1730706642749,-500.0,0.00035616,2]
[341230522,1730706642758,-151.0,0.00035616,7]
[341230523,1730706642767,-500.0,0.00035616,2]
[341230524,1730706642777,-300.0,0.00035616,2]
[341230525,1730706642787,-500.0,0.00035616,2]
[341230526,1730706642796,-551.44979777,0.00035616,2]
[341230527,1730706642805,-500.0,0.00035616,2]
[341230528,1730706642814,-500.0,0.00035616,2]
[341230529,1730706642823,-515.60612151,0.00035616,2]
[341230530,1730706642834,-500.0,0.00035616,2]
[341230531,1730706642843,-500.0,0.00035616,2]
[341230532,1730706642852,-519.62206891,0.00035616,2]
[341230533,1730706642862,-500.0,0.00035616,2]
[341230534,1730706642871,-500.0,0.00035616,2]
[341230535,1730706642880,-500.0,0.00035616,2]
[341230536,1730706642889,-500.0,0.00035616,2]
[341230537,1730706642899,-500.0,0.00035616,2]
[341230538,1730706642908,-500.0,0.00035616,2]
[341230539,1730706642918,-310.30609092,0.00035616,2]
[341230540,1730706642927,-500.0,0.00035616,2]
[341230541,1730706642936,-500.0,0.00035616,2]
[341230542,1730706642946,-500.0,0.00035616,2]
[341230543,1730706642955,-505.7560912,0.00035616,2]
[341230544,1730706642965,-500.0,0.00035616,2]
[341230545,1730706642975,-550.3158822,0.00035616,2]
[341230546,1730706642984,-500.0,0.00035616,2]
[341230547,1730706642993,-500.0,0.00035616,2]
[341230548,1730706643002,-500.0,0.00035616,2]
[341230549,1730706643011,-500.0,0.00035616,2]
[341230550,1730706643022,-500.0,0.00035616,2]
[341230551,1730706643032,-500.0,0.00035616,2]
[341230552,1730706643042,-500.0,0.00035616,2]
[341230553,1730706643051,-510.84901453,0.00035616,2]
[341230554,1730706643061,-564.66381408,0.00035616,2]
[341230555,1730706643071,-500.0,0.00035616,2]
[341230556,1730706643080,-511.50103593,0.00035616,2]
[341230557,1730706643090,-500.0,0.00035616,2]
[341230558,1730706643099,-514.1154528,0.00035616,2]
[341230559,1730706643108,-500.0,0.00035616,2]
[341230560,1730706643118,-500.0,0.00035616,2]
[341230561,1730706643127,-500.0,0.00035616,2]
[341230562,1730706643138,-273.81954994,0.00035616,2]
[341230564,1730706643147,-500.0,0.00035616,2]
[341230565,1730706643157,-500.0,0.00035616,2]
[341230566,1730706643166,-296.40721421,0.00035616,2]
[341230567,1730706643176,-512.87534958,0.00035616,2]
[341230568,1730706643185,-500.0,0.00035616,2]
[341230569,1730706643194,-500.0,0.00035616,2]
[341230570,1730706643204,-496.70062344,0.00035616,2]
[341230571,1730706643213,-500.0,0.00035616,2]
[341230572,1730706643223,-500.0,0.00035616,2]
[341230573,1730706643234,-500.0,0.00035616,2]
[341230574,1730706643243,-500.0,0.00035616,2]
[341230575,1730706643252,-500.0,0.00035616,2]
[341230576,1730706643261,-511.06990903,0.00035616,2]
[341230577,1730706643270,-507.39195758,0.00035616,2]
[341230578,1730706643280,-513.88209591,0.00035616,2]
[341230579,1730706643289,-532.08942983,0.00035616,2]
[341230580,1730706643298,-500.0,0.00035616,2]
[341230581,1730706643307,-512.41788362,0.00035616,2]
[341230582,1730706643317,-500.0,0.00035616,2]
[341230583,1730706643326,-500.0,0.00035616,2]
[341230584,1730706643335,-500.0,0.00035616,2]
[341230585,1730706643344,-500.0,0.00035616,2]
[341230586,1730706643353,-500.0,0.00035616,2]
[341230587,1730706643363,-503.57,0.00035616,2]
[341230588,1730706643371,-640.88544683,0.00035616,2]
[341230589,1730706643380,-500.0,0.00035616,2]
[341230590,1730706643390,-500.0,0.00035616,2]
[341230591,1730706643399,-500.0,0.00035616,2]
[341230592,1730706643408,-500.0,0.00035616,2]
[341230593,1730706643417,-500.0,0.00035616,2]
[341230594,1730706643426,-500.0,0.00035616,2]
[341230595,1730706643435,-500.0,0.00035616,2]
[341230596,1730706643444,-500.0,0.00035616,2]
[341230597,1730706643453,-500.0,0.00035616,2]
[341230598,1730706643463,-507.45549812,0.00035616,2]
[341230599,1730706643474,-500.0,0.00035616,2]
[341230600,1730706643483,-504.86282479,0.00035616,2]
[341230601,1730706643492,-501.52424757,0.00035616,2]
[341230602,1730706643501,-505.55539681,0.00035616,2]
[341230603,1730706643510,-500.0,0.00035616,2]
[341230604,1730706643520,-504.29368049,0.00035616,2]
[341230605,1730706643529,-500.0,0.00035616,2]
[341230606,1730706643541,-500.0,0.00035616,2]
[341230607,1730706643550,-500.0,0.00035616,2]
[341230608,1730706643559,-349.41050455,0.00035616,2]
[341230609,1730706643568,-500.0,0.00035616,2]
[341230610,1730706643577,-500.0,0.00035616,2]
[341230611,1730706643586,-500.0,0.00035616,2]
[341230612,1730706643595,-500.0,0.00035616,2]
[341230613,1730706643604,-500.0,0.00035616,2]
[341230614,1730706643614,-500.0,0.00035616,2]
[341230615,1730706643623,-500.38300633,0.00035616,2]
[341230616,1730706643632,-399.87611481,0.00035616,2]
[341230617,1730706643642,-506.90025297,0.00035616,2]
[341230618,1730706643653,-504.30208424,0.00035616,2]
[341230619,1730706643662,-543.44577468,0.00035616,2]
[341230620,1730706643671,-379.96917572,0.00035616,2]
[341230621,1730706643680,-500.0,0.00035616,2]
[341230622,1730706643690,-498.14348572,0.00035616,2]
[341230623,1730706643699,-500.0,0.00035616,2]
[341230624,1730706643708,-500.0,0.00035616,2]
[341230625,1730706643717,-500.0,0.00035616,2]
[341230626,1730706643726,-500.0,0.00035616,2]
[341230627,1730706643736,-500.0,0.00035616,2]
[341230628,1730706643745,-500.0,0.00035616,2]
[341230629,1730706643754,-561.9246215,0.00035616,2]
[341230630,1730706643763,-500.0,0.00035616,2]
[341230631,1730706643772,-500.0,0.00035616,2]
[341230632,1730706643782,-504.67610671,0.00035616,2]
[341230633,1730706643791,-503.58545584,0.00035616,2]
[341230634,1730706643800,-500.0,0.00035616,2]
[341230635,1730706643809,-524.31551946,0.00035616,2]
[341230636,1730706643819,-500.0,0.00035616,2]
[341230637,1730706643827,-500.0,0.00035616,2]
[341230638,1730706643836,-504.42195596,0.00035616,2]
[341230639,1730706643846,-500.0,0.00035616,2]
[341230640,1730706643855,-151.0,0.00035616,7]
[341230641,1730706643864,-518.72625369,0.00035616,2]
[341230642,1730706643874,-500.0,0.00035616,2]
[341230643,1730706643883,-517.81264842,0.00035616,2]
[341230644,1730706643892,-526.84318283,0.00035616,2]
[341230645,1730706643901,-500.0,0.00035616,2]
[341230646,1730706643910,-507.79983206,0.00035616,2]
[341230647,1730706643920,-500.0,0.00035616,2]
[341230648,1730706643930,-500.0,0.00035616,2]
[341230649,1730706643939,-636.77173444,0.00035616,2]
[341230650,1730706644056,-507.73195557,0.00035616,2]
[341230651,1730706644066,-508.10768971,0.00035616,2]
[341230652,1730706644075,-500.0,0.00035616,2]
[341230653,1730706644085,-500.0,0.00035616,2]
[341230654,1730706644094,-500.0,0.00035616,2]
[341230655,1730706644103,-500.0,0.00035616,2]
[341230656,1730706644112,-448.50554729,0.00035616,2]
[341230657,1730706644120,-525.04996068,0.00035616,2]
[341230658,1730706644129,-500.0,0.00035616,2]
[341230659,1730706644138,-503.90227903,0.00035616,2]
[341230660,1730706644147,-500.0,0.00035616,2]
[341230661,1730706644156,-520.25969648,0.00035616,2]
[341230662,1730706644165,-500.0,0.00035616,2]
[341230663,1730706644174,-500.0,0.00035616,2]
[341230664,1730706644183,-505.39166666,0.00035616,2]
[341230665,1730706644192,-522.89043958,0.00035616,2]
[341230666,1730706644201,-500.0,0.00035616,2]
[341230667,1730706644212,-503.77028552,0.00035616,2]
[341230668,1730706644222,-500.0,0.00035616,2]
[341230669,1730706644234,-511.44335707,0.00035616,2]
[341230670,1730706644244,-255.39017326,0.00035616,2]
[341230671,1730706644254,-500.0,0.00035616,2]
[341230672,1730706644264,-508.91410646,0.00035616,2]
[341230673,1730706644274,-500.0,0.00035616,2]
[341230674,1730706644283,-1260.4,0.00035616,2]
[341230675,1730706644293,-500.0,0.00035616,2]
[341230676,1730706644302,-517.80563638,0.00035616,2]
[341230677,1730706644312,-500.0,0.00035616,2]
[341230678,1730706644322,-500.0,0.00035616,2]
[341230679,1730706644331,-503.62275484,0.00035616,2]
[341230680,1730706644341,-585.66202995,0.00035616,2]
[341230681,1730706644350,-250.0,0.00035616,2]
[341230682,1730706644360,-500.0,0.00035616,2]
[341230683,1730706644369,-500.0,0.00035616,2]
[341230684,1730706644381,-521.15794477,0.00035616,2]
[341230685,1730706644391,-536.15449065,0.00035616,2]
[341230686,1730706644400,-500.0,0.00035616,2]
[341230687,1730706644410,-500.0,0.00035616,2]
[341230688,1730706644420,-500.0,0.00035616,2]
[341230689,1730706644429,-500.0,0.00035616,2]
[341230690,1730706644439,-500.0,0.00035616,2]
[341230691,1730706644449,-502.79748802,0.00035616,2]
[341230692,1730706644458,-511.26846883,0.00035616,2]
[341230693,1730706644468,-1008.77,0.00035616,2]
[341230694,1730706644478,-507.08913821,0.00035616,2]
[341230695,1730706644495,-500.0,0.00035616,2]
[341230696,1730706644504,-500.57483063,0.00035616,2]
[341230697,1730706644514,-505.86737556,0.00035616,2]
[341230698,1730706644523,-552.59,0.00035616,2]
[341230699,1730706644532,-500.0,0.00035616,2]
[341230700,1730706644542,-504.38951807,0.00035616,2]
[341230701,1730706644551,-500.0,0.00035616,2]
[341230702,1730706644560,-500.0,0.00035616,2]
[341230703,1730706644570,-500.0,0.00035616,2]
[341230704,1730706644579,-554.64507191,0.00035616,2]
[341230705,1730706644589,-501.18746341,0.00035616,2]
[341230706,1730706644598,-543.43871633,0.00035616,2]
[341230707,1730706644607,-500.0,0.00035616,2]
[341230708,1730706644617,-515.87933634,0.00035616,2]
[341230709,1730706644626,-500.0,0.00035616,2]
[341230710,1730706644636,-500.0,0.00035616,2]
[341230711,1730706644646,-613.21419172,0.00035616,2]
[341230712,1730706644655,-525.18147825,0.00035616,2]
[341230713,1730706644664,-503.40265266,0.00035616,2]
[341230714,1730706644674,-200.0,0.00035616,2]
[341230715,1730706644683,-500.0,0.00035616,2]
[341230716,1730706644692,-500.0,0.00035616,2]
[341230717,1730706644701,-501.30186648,0.00035616,2]
[341230718,1730706644711,-504.4091331,0.00035616,2]
[341230719,1730706644720,-500.0,0.00035616,2]
[341230720,1730706644730,-500.0,0.00035616,2]
[341230721,1730706644739,-764.99,0.00035616,2]
[341230722,1730706644748,-500.0,0.00035616,2]
[341230723,1730706644758,-680.74,0.00035616,2]
[341230724,1730706644767,-500.0,0.00035616,2]
[341230725,1730706644777,-522.39219963,0.00035616,2]
[341230726,1730706644786,-500.0,0.00035616,2]
[341230727,1730706644796,-392.19719176,0.00035616,2]
[341230728,1730706644806,-519.64271812,0.00035616,2]
[341230729,1730706644816,-511.12902888,0.00035616,2]
[341230730,1730706644825,-151.0,0.00035616,7]
[341230731,1730706644834,-500.0,0.00035616,2]
[341230732,1730706644844,-500.0,0.00035616,2]
[341230733,1730706644854,-502.18526261,0.00035616,2]
[341230734,1730706644864,-500.0,0.00035616,2]
[341230735,1730706644874,-410.93913965,0.00035616,2]
[341230736,1730706644885,-500.0,0.00035616,2]
[341230737,1730706644899,-512.06382551,0.00035616,2]
[341230738,1730706644908,-500.0,0.00035616,2]
[341230739,1730706644918,-252.65698769,0.00035616,2]
[341230740,1730706644927,-500.0,0.00035616,2]
[341230741,1730706644936,-500.55695015,0.00035616,2]
[341230742,1730706644945,-500.0,0.00035616,2]
[341230743,1730706644954,-511.7651357,0.00035616,2]
[341230744,1730706644964,-500.27451897,0.00035616,2]
[341230745,1730706644973,-500.0,0.00035616,2]
[341230746,1730706644985,-508.2637895,0.00035616,2]
[341230747,1730706644995,-500.0,0.00035616,2]
[341230748,1730706645005,-500.0,0.00035616,2]
[341230749,1730706645014,-500.0,0.00035616,2]
[341230750,1730706645024,-500.0,0.00035616,2]
[341230751,1730706645034,-500.0,0.00035616,2]